Cogmind - Beta 16.1 @@@ ROGUE MODE // 2026.04.06 @ 23:31:12 Player: Maelyn Result: Destroyed by G-47 Trooper with Particle Gun Performance ------------- Evolutions (2) 1000 Regions Visited (3) 600 Robots Destroyed (40) 200 Value Destroyed (1145) 1145 Prototype IDs (0) 0 Alien Tech Used (0) 0 Bonus (0) 0 TOTAL SCORE: 2945 Bonus ------- None Cogmind --------- Core Integrity 0/550 Matter 277/300 Energy 160/160 System Corruption 0% Temperature Danger (415) Movement Core (800) Ox15 Location -8/Materials Parts ------- > --- POWER (1) -------- Light Nuclear Core > --- PROPULSION (3) --- Armored Wheel > --- UTILITY (4) ------ High-capacity Storage Unit Core Shielding > --- WEAPON (3) ------- (None) > --- INVENTORY (20) --- Deuterium Engine Deuterium Engine Light Deuterium Engine Light Nuclear Core Light Nuclear Core Reinforced Deuterium Engine Light Treads Armored Treads Armored Treads Heat Sink Compact Battery (200) Visual Processing Unit Improved Sensor Array Advanced Targeting Computer Graphene Brace System Shield Peak State ------------ > --- POWER ------------ Light Nuclear Core > --- PROPULSION ------- Armored Wheel Armored Wheel Armored Wheel > --- UTILITY ---------- High-capacity Storage Unit Core Shielding Hardened Heavy Armor Plating > --- WEAPON ----------- Ion Cannon Gauss Rifle > --- INVENTORY -------- Deuterium Engine Deuterium Engine Light Deuterium Engine Light Nuclear Core Light Nuclear Core Reinforced Deuterium Engine Light Treads Armored Treads Armored Treads Heat Sink Compact Battery Visual Processing Unit Improved Sensor Array Graphene Brace System Shield [Rating: 30] Favorites ----------- Power Ion Engine Engine Ion Engine Power Core Light Nuclear Core Propulsion Light Treads Treads Light Treads Wheel Armored Wheel Utility High-capacity Storage Unit Device ECM Suite Storage High-capacity Storage Unit Hackware System Shield Protection Hardened Light Armor Plating Weapon Light Assault Rifle Energy Gun Medium Laser Energy Cannon Ion Cannon Ballistic Gun Light Assault Rifle Ballistic Cannon Flak Cannon Build | -11 -10 -9 -8 ------- Run | Yrd Mat Mat Mat Slots Evolved 4 | . . 2 2 Power . | . . . . Propulsion 1 | . . . 1 Utility 2 | . . 1 1 Weapon 1 | . . 1 . Parts Attached 47 | 6 8 5 28 Power 9 | 1 1 1 6 Engine 6 | 1 1 1 3 Core 3 | . . . 3 Reactor . | . . . . Propulsion 12 | 2 2 . 8 Treads 7 | . 2 . 5 Leg . | . . . . Wheel 5 | 2 . . 3 Hover . | . . . . Flight . | . . . . Utility 12 | 1 3 2 6 Device 3 | . 2 . 1 Storage 2 | 1 1 . . Processor . | . . . . Hackware 1 | . . . 1 Protection 6 | . . 2 4 Artifact . | . . . . Weapon 14 | 2 2 2 8 Energy Gun 4 | 2 . . 2 Energy Cannon 1 | . . . 1 Ballistic Gun 8 | . 2 2 4 Ballistic Cannon 1 | . . . 1 Launcher . | . . . . Special Weapon . | . . . . Impact Weapon . | . . . . Slashing Weapon . | . . . . Piercing Weapon . | . . . . Special Melee Weapon . | . . . . Unidentified Prototypes . | . . . . Parts Lost 28 | . 5 1 22 Power 3 | . 1 1 1 Propulsion 8 | . 2 . 6 Utility 7 | . . . 7 Weapon 10 | . 2 . 8 Highest Loss Streak 16 | . 4 1 16 To Critical Strikes . | . . . . Average Backups 11 | 4 6 9 15 Power 3 | 1 1 2 3 Propulsion 2 | 2 1 . 3 Utility 4 | . 1 2 6 Weapon 2 | . 1 2 2 Tool/Special . | . . . . Unused Backups 17 | . . . 17 Power 5 | . . . 5 Propulsion 2 | . . . 2 Utility 8 | . . . 8 Weapon 2 | . . . 2 Tool/Special . | . . . . Average Slot Usage (%) 91 | . 90 98 89 Engine 6 | . 13 11 1 Core 3 | . . . 6 Treads 16 | . 9 22 17 Wheel 6 | . 13 . 6 Device 10 | . 11 11 10 Storage 10 | . 14 11 9 Protection 9 | . . 11 12 Energy Gun 5 | . 18 . 2 Energy Cannon 1 | . . . 2 Ballistic Gun 19 | . 9 31 18 Peak Build Rating 30 | 6 9 12 30 Average Rating 15 | 2 7 10 21 On Entrance 6 | . 6 7 11 Avg Prop Armor Cover (%) 2 | . . . 2 Naked Turns . | . . . . Heaviest Build 81 | 14 50 57 81 Greatest Support 60 | 20 40 40 60 Greatest Overweight (x) 17 | 1 15 1 17 Average Overweight (x) . | . 1 1 . Largest Inventory Capacity 20 | 8 20 20 20 Average Capacity 18 | 7 17 20 20 Most Carried 20 | 8 9 13 20 Average Carried 12 | 4 6 9 15 Final Capacity 20 | 8 20 20 20 Final Carried 16 | 4 7 12 16 Class Distribution -------------------- 43% | Mutant 32% | Scavenger-Tank 24% | Tank Dominant Class ---------------- Mutant | -10/Materials Tank | -9/Materials Scavenger-Tank | -8/Materials Resources | -11 -10 -9 -8 ----------- Run | Yrd Mat Mat Mat Matter Collected 1008 | 137 210 61 600 Remotely . | . . . . Salvage Created 1530 | . 435 144 951 Parts 98 | . 27 14 57 Haulers Intercepted 1 | . . . 1 Recyclers Shooed 2 | . 2 . . Parts Field Recycled . | . . . . Retrieved Matter . | . . . . Parts Self-Destructed . | . . . . Prevented . | . . . . Parts Restored . | . . . . Kills | -11 -10 -9 -8 ------- Run | Yrd Mat Mat Mat Combat Hostiles Destroyed 30 | . 10 5 15 Guns 25 | . 10 5 10 Cannons 5 | . . . 5 Classes Destroyed 12 | . 4 1 7 Worker 1 | . . . 1 Builder 2 | . . . 2 Hauler 1 | . . . 1 Recycler 3 | . 2 . 1 Operator 1 | . . . 1 Watcher 2 | . 1 . 1 Swarmer 9 | . 6 3 . Grunt 13 | . 4 1 8 Duelist 1 | . . . 1 Sentry 5 | . . 1 4 Hunter 1 | . . . 1 Heavy 1 | . . . 1 Best Kill Streak 6 | . 6 3 5 Combat Bots Only 5 | . 5 3 4 Max Kills in Single Turn 2 | . 1 1 2 Gunslinging . | . . . . Exploded . | . . . . Melee . | . . . . Uniques/NPCs Destroyed . | . . . . Combat | -11 -10 -9 -8 -------- Run | Yrd Mat Mat Mat Hostile Shots Fired 437 | . 98 62 277 Missed 118 | . 25 23 70 Hits 319 | . 73 39 207 Melee 3 | . . . 3 Projectile 316 | . 73 39 204 Critical Strikes 9 | . . . 9 Damage Taken 4817 | . 684 530 3603 Core 818 | . 185 79 554 Absorbed by Shields . | . . . . Redirected to Shielding 137 | . . 11 126 Core Remaining (%) 68 | 100 26 80 . Volleys Fired 115 | . 32 19 64 Largest 3 | . 2 3 3 Hottest 123 | . 100 63 123 Shots Fired 262 | . 59 51 152 Gun 224 | . 59 51 114 Cannon 38 | . . . 38 Launcher . | . . . . Special . | . . . . Kinetic 158 | . 12 51 95 Thermal 104 | . 47 . 57 Explosive . | . . . . Electromagnetic . | . . . . Robot Hit Streak 12 | . 9 5 12 Robot Miss Streak 5 | . 5 4 3 Penetration Max 1 | . . . 1 Secondary Targets 4 | . 2 1 1 Max Gunslinging Chain 1 | . 1 1 1 Shots Hit Robots 168 | . 35 28 105 Core Hits 88 | . 22 11 55 Critical Kills 1 | . . . 1 Critical Parts Destroyed . | . . . . Critical Strikes 1 | . . . 1 Destroy 1 | . . . 1 Melee Attacks . | . . . . Impact . | . . . . Slashing . | . . . . Piercing . | . . . . Sneak Attacks . | . . . . Combat Hostiles . | . . . . Follow-up Attacks . | . . . . Damage Inflicted 2391 | . 407 290 1694 Guns 1817 | . 407 290 1120 Cannons 573 | . . . 573 Explosions . | . . . . Melee . | . . . . Ramming 1 | . . . 1 Kinetic 1471 | . 64 290 1117 Thermal 919 | . 343 . 576 Explosive . | . . . . Electromagnetic . | . . . . Impact . | . . . . Slashing . | . . . . Piercing . | . . . . Highest Corruption 1 | . . 1 . Average Corruption 1 | . . 1 . Corruption Purged . | . . . . Corruption Blocked . | . . . . Effects 2 | . . 2 . Message Errors 1 | . . 1 . Parts Rejected 1 | . . 1 . Overload Shots . | . . . . Overflow Damage . | . . . . Projectiles . | . . . . Explosions . | . . . . Melee . | . . . . Knockbacks 5 | . . . 5 Impact . | . . . . Kinetic 5 | . . . 5 Secondary . | . . . . Self-Inflicted Damage . | . . . . Shots . | . . . . Rammed 2 | . . . 2 Targets Rammed 2 | . . . 2 Kicked . | . . . . Crushed . | . . . . Highest Temperature 612 | . 201 164 612 Average Temperature 114 | . 110 69 123 Received Heat Transfer 1557 | . 141 246 1170 Effects 7 | . . . 7 Shutdowns 1 | . . . 1 Interference 2 | . . . 2 Matter Decay 2 | . . . 2 Short Circuit 2 | . . . 2 Siege Activations . | . . . . Martial Activations . | . . . . Shielding Activations . | . . . . Robots Disrupted . | . . . . Combat Hostiles . | . . . . Robots Corrupted . | . . . . Combat Hostiles . | . . . . Parts Fried . | . . . . Impact Corruptions . | . . . . Robots Melted . | . . . . Combat Hostiles . | . . . . Parts Melted 2 | . 2 . . Heat Transferred 2111 | . 999 . 1112 Parts Sabotaged . | . . . . Parts Stolen . | . . . . Parts Stripped . | . . . . Power Chain Reactions . | . . . . Alert | -11 -10 -9 -8 ------- Run | Yrd Mat Mat Mat Maximum Alert Level . | . . . . Low Security (%) 100 | 100 100 100 100 Level 1 . | . . . . Level 2 . | . . . . Level 3 . | . . . . Level 4 . | . . . . Level 5 . | . . . . High Security . | . . . . Max Security . | . . . . Peak Influence 152 | . 138 70 152 Initial 40 | . . 40 1 Average 28 | . 64 31 14 Influence Increases 911 | . 288 136 487 Destroy 0b10 Robot/C 600 | . 200 100 300 Destroy 0b10 Robot/NC 50 | . 15 . 35 Destroy Leader 146 | . 42 20 84 Disable Machine 30 | . . 15 15 Destroy Structure 10 | . 1 1 8 Lose Combat Pursuer 75 | . 30 . 45 Influence Decreases 815 | . 190 228 397 Entered New Map 63 | . . 58 5 Time Decay 533 | . 140 160 233 Lost Part 219 | . 50 10 159 Squads Dispatched 6 | . 2 . 4 Investigation . | . . . . Extermination . | . . . . Reinforcement 6 | . 2 . 4 Assault . | . . . . Garrison . | . . . . Intercept . | . . . . Searches Triggered . | . . . . Construction Impeded . | . . . . Haulers Reinforced . | . . . . Active Scanning Responses . | . . . . Cargo Convoy Interrupts . | . . . . Stealth | -11 -10 -9 -8 --------- Run | Yrd Mat Mat Mat Distress Signals 7 | . 2 3 2 Communications Jammed . | . . . . Distress Signals . | . . . . Times Spotted 59 | . 16 16 27 Peak Tracking Total 9 | . 9 6 8 Tactical Retreats 6 | . 3 1 2 ECM-based Alert Blocks 3 | . 2 1 . Traps | -11 -10 -9 -8 ------- Run | Yrd Mat Mat Mat Traps Triggered 1 | . . 1 . Indirectly . | . . . . Trap Hack Attempts . | . . . . Triggered . | . . . . Disarmed . | . . . . Reprogrammed . | . . . . Reused . | . . . . Traps Extracted . | . . . . Installed . | . . . . Triggered . | . . . . Machines | -11 -10 -9 -8 ---------- Run | Yrd Mat Mat Mat Machines Disabled 2 | . . 1 1 Max in Single Turn 1 | . . 1 1 Machines Repaired . | . . . . Machines Dismantled . | . . . . Machines Sabotaged . | . . . . Overloaded Fab Kills . | . . . . Hacking | -11 -10 -9 -8 --------- Run | Yrd Mat Mat Mat Machines Accessed . | . . . . Terminals . | . . . . Fabricators . | . . . . Repair Stations . | . . . . Recycling Units . | . . . . Scanalyzers . | . . . . Garrison Access . | . . . . Total Hacks . | . . . . Successful . | . . . . Failed . | . . . . Catastrophic . | . . . . Database Lockouts . | . . . . Manual . | . . . . Terminals . | . . . . Fabricators . | . . . . Repair Stations . | . . . . Recycling Units . | . . . . Scanalyzers . | . . . . Garrison Access . | . . . . Terminal Hacks . | . . . . Fabricator Hacks . | . . . . Repair Station Hacks . | . . . . Recycling Unit Hacks . | . . . . Scanalyzer . | . . . . Garrison Access Hacks . | . . . . Unauthorized Hacks . | . . . . Terminals . | . . . . Fabricators . | . . . . Repair Stations . | . . . . Recycling Units . | . . . . Scanalyzers . | . . . . Garrison Access . | . . . . Data Cores Recovered . | . . . . Used . | . . . . Hacking Detections . | . . . . Full Trace Events . | . . . . Feedback Events . | . . . . Feedback Blocked . | . . . . Robot Schematics Acquired . | . . . . Robots Built . | . . . . Authchips . | . . . . Time . | . . . . Total Robot Build Rating . | . . . . Part Schematics Acquired . | . . . . Parts Built . | . . . . Authchips . | . . . . Time . | . . . . Total Part Build Rating . | . . . . Part Studies Acquired . | . . . . Parts Repaired . | . . . . Time . | . . . . Parts Recycled . | . . . . Recycled Matter . | . . . . Retrieved Matter . | . . . . Retrieved Components . | . . . . Parts Scanalyzed . | . . . . Part Schematics Acquired . | . . . . Parts Damaged . | . . . . Bothacking | -11 -10 -9 -8 ------------ Run | Yrd Mat Mat Mat Used RIF Installer . | . . . . Robots Hacked . | . . . . Non-combat . | . . . . Combat . | . . . . Robot Hacks Applied . | . . . . Relay Couplers Released . | . . . . Fabnet Peak Effective % . | . . . . Robots Rewired . | . . . . Allies Hacked . | . . . . Hacks Repelled . | . . . . Allies | -11 -10 -9 -8 -------- Run | Yrd Mat Mat Mat Total Allies . | . . . . Largest Group . | . . . . Highest-Rated Group . | . . . . Highest-Rated Ally . | . . . . Total Orders . | . . . . Ally Attacks . | . . . . Total Damage . | . . . . Kills . | . . . . Allies Corrupted . | . . . . Allies Melted . | . . . . Intel | -11 -10 -9 -8 ------- Run | Yrd Mat Mat Mat Active Infowar (turns) 944 | . 91 350 503 ECM 944 | . 91 350 503 Robot Analysis Total . | . . . . Derelict Logs Recovered . | . . . . Drone Launches . | . . . . Drone Recoveries . | . . . . Exploration | -11 -10 -9 -8 ------------- Run | Yrd Mat Mat Mat Turns Passed 1580 | 48 333 350 849 Spaces Moved 707 | 44 168 119 376 Core 27 | 25 1 . 1 Treads 416 | . 36 119 261 Legs . | . . . . Wheels 264 | 19 131 . 114 Hover . | . . . . Flight . | . . . . Fastest Speed 50 | 50 80 240 105 Average Speed 159 | 74 134 240 155 Slowest Speed 900 | 100 800 240 900 Overloaded Moves . | . . . . Propulsion Burnouts . | . . . . Robots Hopped . | . . . . Potential Cave-ins . | . . . . Cave-ins Triggered . | . . . . Exploration Rate (%) 25 | 3 39 22 39 Regions Visited 3 Branch Regions . Pre-discovered Areas . | . . . . Known Exits Taken . | . . . . Unknown Exits Taken 3 | 1 1 1 . Scrap Searched . | . . . . Spaces Dug . | . . . . Terrain Destroyed 4 | . . . 4 Melee . | . . . . Projectile 4 | . . . 4 AOE . | . . . . Terrain Rammed . | . . . . Walls Destroyed . | . . . . Machines Disabled . | . . . . Actions | -11 -10 -9 -8 --------- Run | Yrd Mat Mat Mat Total 948 | 58 218 150 522 Wait . | . . . . Move 704 | 43 167 118 376 Hop . | . . . . Pick Up 62 | 9 10 8 35 Fast Attach 1 | 1 . . . Attach 34 | 5 6 3 20 Detach 1 | . . . 1 Swap 15 | . 2 2 11 Drop 14 | . 1 . 13 Fire 115 | . 32 19 64 Melee . | . . . . Ram . | . . . . Kick . | . . . . Crush 2 | . . . 2 Escape Stasis . | . . . . Rewire . | . . . . Trap . | . . . . Miscellaneous . | . . . . Route ------- -11/Scrapyard -10/Materials -9/Materials -8/Materials History --------- Turn | Location | Event 19 | -11/Scrapyard | Discovered new exit (range 15) 49 | -11/Scrapyard | Entered Materials 263 | -10/Materials | Core integrity fell below 50% 304 | -10/Materials | Lost 4 parts (1p1n2w) 312 | -10/Materials | Build established: Mutant 353 | -10/Materials | Discovered new exit (range 10) 382 | -10/Materials | Entered another Materials area 382 | -9/Materials | Evolved 2 slots: Utility x1, Weapon x1 676 | -9/Materials | Discovered new exit (range 3) 679 | -9/Materials | Build established: Tank 732 | -9/Materials | Entered another Materials area 732 | -8/Materials | Evolved 2 slots: Propulsion x1, Utility x1 1034 | -8/Materials | Build established: Scavenger-Tank 1286 | -8/Materials | Core integrity fell below 50% 1364 | -8/Materials | Lost 16 parts (1p4n6u5w) 1369 | -8/Materials | Core integrity fell below 20% 1581 | -8/Materials | Destroyed by G-47 Trooper with Particle Gun Last Messages --------------- 01571_ ALERT: Suspicious intruders detected, dispatching Cutter reinforcements to area. [Achievement: Heavy Suspicion] 01572_ Arm. Wheel broken. 01572_ Overheating: Short circuit. 01572_ K-01 Serf collects debris. 01575_ Gauss Rifle broken. 01575_ Overheating: Short circuit. 01575_ Acquired 7 matter. 01575_ Hrd. Heavy Armor Plating destroyed. 01575_ Broken Gauss Rifle destroyed. 01576_ Overheating: Matter decay (-68). 01576_ K-01 Serf collects debris. 01577_ Overheating: Matter decay (-41). 01577_ Arm. Wheel destroyed. 01578_ Acquired 102 matter. 01579_ K-01 Serf collects debris. 01579_ Ion Cannon destroyed. 01581_ U-05 Engineer works on Electrolysis Chamber. Map ----- +----------------------------------------------------+ | ???????????????????????#=!] ## ????????# "" """ | | ???????????????????????#=]! *%# #???????# | | ???????????????????????#** ## #???????######### | | ???????????????????????#* ## ########????????? | | ???????????????????????######### ## [ #????????? | | ???????????????????????????????# ## #????????? | | ???????????????????????????????# ## ########## | | ???????????????????????######### ## + = * | | ???????????????????????# !# # ######=### | | ???????????????????????# ! # + % #????# #?? | | ???????????????????????# # # #????# #?? | | ???????????????????????# + #######????# #?? | | ???????????????????????# ! # ??? #?? | | ???????????????????????# # #########??###?? | | ???????????????????????##+##### #??????????????? | | ???????????????????????# #??????????????? | | ???????????????????????# #??????????????? | | ???????????????????????# #??????????????? | | ???????????????????????# ########??????????????? | | ????????????????# ?????# #?????????????????????? | | ????????????????# ????# #?????????????????????? | | ????????????????# #### % #?????????????????????? | | ????????????????# H %=#?????????????????????? | | ????????????????# k #?????????????????????? | | ????????????????# """ /=!#?????????????????????? | | ???????????????#" "R" [@=+?????????????????????? | | ???????????????#T "^" g% #?????????????????????? | | ????????????????" ^ %!#?????????????????????? | | ???????????????## ^ k #?????????????????????? | | ????????????????# ]] !!= ?????????????????????? | | ???????????????# ]] !|%= ?????????????????????? | | ???????????????# !! ????????????????????? | | ??????????????k ????????????????????? | | ?????????????####/##### ##???????????????????? | | ???????????????? u????###+###????????????????????? | | ??????????????? ???????? ???????????????????????? | | ?????????????? ?????????/???????????????????????? | | ?????????????????????????????????????????????????? | | ?????????????????????????????????????????????????? | | ?????????????????????????????????????????????????? | | ?????????????????????????????????????????????????? | | ?????????????????????????????????????????????????? | | ?????????????????????????????????????????????????? | | ?????????????????????????????????????????????????? | | ?????????????????????????????????????????????????? | | ?????????????????????????????????????????????????? | | ?????????????????????????????????????????????????? | | | | | | | +----------------------------------------------------+ Best States ------------- Heat Dissipation 39 Energy Generation 14 Energy Capacity 275 Matter Stores 300 Matter Capacity 300 Sight Range 16 Terrain Scan Density 10 ECM Strength 1 Armor Coverage 600 Core Shielding 20 Weapon Shielding 33 Evasion (%) 50 Recoil Reduction 7 Defensive Hacking 10 Item Schematics ----------------- None Robot Schematics ------------------ None Fabricated ------------ Nothing Repaired ---------- Nothing Studied --------- None Alien Tech Used ----------------- None Achievements -------------- Heavy Suspicion Challenges ------------ None Game ------ Seed NuclearBarrageImmobilizer Manual? 0 Play Time 00:22:05 Cumulative 13.8 hours Start 2026.04.06 @ 23:11:58 End 2026.04.06 @ 23:31:12 Sessions 1 Manual Loads 0 Difficulty Rogue Special Mode None Game No. 37 Rogue 37 Adventurer 0 Explorer 0 Win Type - Total 0 Types 0/0/0/0/0/0/0/0/0/0 Lore% 7 Gallery% 16 Achievement% 9 Wizard Run 0 Options --------- Layout 2 ASCII 0 Keyboard 0 Movement Mouse Keybinds 0 Fullscreen 1 Font 24/Crisp Map View 50x44 Zoom Use 0% Tactical HUD 1 Map Filters NONE Filters NONE Steam 1 RUN: 775eb616-3740-424b-a065-eef22369b58e